Cogmind - Beta 9.4 *** ADVENTURER MODE // 2020.01.11 @ 22:36:27 // Winter2019/RPGLIKE Player: Rev Result: Destroyed by as-37854 with Assembled Focal Cannon Performance ------------- Evolutions (3) 1500 Regions Visited (10) 2000 Robots Destroyed (134) 670 Value Destroyed (5041) 5041 Prototype IDs (19) 380 Alien Tech Used (0) 0 Bonus (1680) 1680 TOTAL SCORE: 11271 Bonus ------- High Alert Combat Kills 128 Aligned with FarCom 300 Met Imprinter 300 Destroyed Z-Imprinter 1000 Friendly Fire -48 Cogmind --------- Core Integrity 0/900 Matter 296/350 Energy 1100/1100 System Corruption 0% Temperature Cool (123) Movement Treading (163) Location -7/Deep Caves Parts ------- > --- POWER (2) -------- Zionite Light DM Reactor Zionite Light DM Reactor > --- PROPULSION (3) --- Armored Treads Medium Treads Medium Treads > --- UTILITY (6) ------ Zionite Biocell Makeshift Sensor Array Advanced Signal Interpreter Armor Integrity Analyzer Hardened Heavy Armor Plating > --- WEAPON (4) ------- Zionite Laser-S Zionite Laser-S Zionite Phaser-S Gauss Cannon > --- INVENTORY (6) ---- Cryofiber Web Phase Shifter Component Analysis Suite System Backup Module Mobile Refinery Mk. CCLXVII Zionite Laser-S Peak State ------------ > --- POWER ------------ Zionite Light DM Reactor Zionite Light DM Reactor > --- PROPULSION ------- Armored Treads Medium Treads Medium Treads > --- UTILITY ---------- Zionite Biocell Makeshift Sensor Array Advanced Signal Interpreter Armor Integrity Analyzer Zionite Heavy Carapace > --- WEAPON ----------- Zionite Laser-S Zionite Phaser-S Zionite Laser-M Gauss Cannon > --- INVENTORY -------- Cryofiber Web Phase Shifter Component Analysis Suite System Backup Module Mobile Refinery Mk. CCLXVII Zionite Laser-S [Rating: 81] Favorites ----------- Power Light Angular Momentum Engine Engine Light Angular Momentum Engine Power Core Light Nuclear Core Reactor Zionite Light DM Reactor Propulsion Armored Treads Treads Armored Treads Wheel Compact Wheel Utility Advanced Signal Interpreter Device Advanced Terrain Scanner Storage Zionite Biocell Processor Advanced Signal Interpreter Protection Hardened Heavy Armor Plating Weapon Enhanced Autogun Energy Gun Lightning Gun Energy Cannon EM Pulse Cannon Ballistic Gun Enhanced Autogun Ballistic Cannon Gauss Cannon Build | -11 -10 -10 -10 -9 -8 -7 -7 -7 -7 -7 ------- Run | Scr Mat Min Exi Min Mat Fac Low Low Zio Dee Slots Evolved 11 | 3 . 1 . 1 5 . . 1 . . Power 1 | . . . . . 1 . . . . . Propulsion 2 | 1 . . . . 1 . . . . . Utility 5 | 1 . 1 . . 2 . . 1 . . Weapon 3 | 1 . . . 1 1 . . . . . Parts Attached 72 | 5 8 2 2 3 14 15 3 1 2 17 Power 9 | 1 1 . . . 2 2 1 . . 2 Engine 5 | 1 . . . . 2 2 . . . . Core 2 | . 1 . . . . . 1 . . . Reactor 2 | . . . . . . . . . . 2 Propulsion 7 | 2 . . . . 3 . 2 . . . Treads 5 | . . . . . 3 . 2 . . . Leg . | . . . . . . . . . . . Wheel 2 | 2 . . . . . . . . . . Hover . | . . . . . . . . . . . Flight . | . . . . . . . . . . . Utility 36 | . 4 1 2 2 5 9 . 1 2 10 Device 21 | . 3 1 2 2 2 5 . 1 2 3 Storage 1 | . . . . . . . . . . 1 Processor 3 | . 1 . . . 1 1 . . . . Hackware . | . . . . . . . . . . . Protection 11 | . . . . . 2 3 . . . 6 Artifact . | . . . . . . . . . . . Weapon 20 | 2 3 1 . 1 4 4 . . . 5 Energy Gun 7 | . . . . . 1 1 . . . 5 Energy Cannon 2 | . . 1 . . 1 . . . . . Ballistic Gun 7 | 2 2 . . . 1 2 . . . . Ballistic Cannon 4 | . 1 . . 1 1 1 . . . . Launcher . | . . . . . . . . . . . Special Weapon . | . . . . . . . . . . . Impact Weapon . | . . . . . . . . . . . Slashing Weapon . | . . . . . . . . . . . Piercing Weapon . | . . . . . . . . . . . Special Melee Weapon . | . . . . . . . . . . . Unidentified Prototypes 18 | . . . 1 2 4 . . . 1 10 Parts Lost 1 | . . . . . . . . . . 1 Power . | . . . . . . . . . . . Propulsion . | . . . . . . . . . . . Utility 1 | . . . . . . . . . . 1 Weapon . | . . . . . . . . . . . Highest Loss Streak 1 | . . . . . . . . . . 1 Average Slot Usage (%) 88 | . 94 100 100 78 77 80 92 92 93 92 Engine 6 | . 9 . . . 2 13 11 6 6 1 Core 4 | . 4 12 12 11 6 . 2 6 6 2 Reactor 1 | . . . . . . . . . . 8 Treads 13 | . . . . . 6 21 21 20 20 20 Wheel 7 | . 28 25 25 22 10 . . . . . Device 13 | . 18 24 25 22 16 7 7 12 13 8 Processor 11 | . 4 12 12 11 8 13 14 13 13 13 Protection 5 | . . . . . 10 7 7 6 6 5 Energy Gun 4 | . . . . . 3 2 7 6 6 15 Energy Cannon 1 | . . 5 12 . . . . . . . Ballistic Gun 7 | . 14 6 . . 1 6 14 13 13 4 Ballistic Cannon 8 | . 13 12 12 11 9 6 7 6 6 6 Naked Turns . | . . . . . . . . . . . Heaviest Build 103 | 5 11 16 16 67 85 103 62 67 71 70 Greatest Support 76 | 32 32 32 32 32 60 60 76 76 76 76 Greatest Overweight (x) 3 | . . . . 2 3 1 1 . . . Average Overweight (x) . | . . . . 1 1 . . . . . Largest Inventory Capacity 6 | 4 4 4 4 4 5 6 6 6 6 6 Average Capacity 5 | 4 4 4 4 4 4 5 6 6 6 6 Most Carried 6 | 1 4 4 4 4 5 6 6 6 6 6 Average Carried 4 | . 3 3 1 3 4 4 5 5 5 5 Final Capacity 6 | 4 4 4 4 4 5 6 6 6 6 6 Final Carried 6 | 1 4 4 4 4 5 5 6 5 6 6 Class Distribution -------------------- 80% | Skirmisher 11% | Scavenger-Skirmisher 8% | Mutant Dominant Class ---------------- Mutant | -10/Materials Skirmisher | -10/Mines Skirmisher | -10/Exiles Skirmisher | -9/Mines Skirmisher | -8/Materials Skirmisher | -7/Factory Skirmisher | -7/Lower Caves Skirmisher | -7/Lower Caves Skirmisher | -7/Zion Scavenger-Skirmisher | -7/Deep Caves Resources | -11 -10 -10 -10 -9 -8 -7 -7 -7 -7 -7 ----------- Run | Scr Mat Min Exi Min Mat Fac Low Low Zio Dee Matter Collected 2513 | 249 260 200 . 66 285 341 173 426 33 480 Remotely 71 | . 71 . . . . . . . . . Salvage Created 3994 | . 210 53 . 53 1262 604 459 684 . 669 Parts 234 | . 22 11 . 3 64 32 17 41 . 44 Haulers Intercepted 4 | . 2 . . . 2 . . . . . Recyclers Shooed 1 | . 1 . . . . . . . . . Parts Field Recycled . | . . . . . . . . . . . Retrieved Matter . | . . . . . . . . . . . Parts Self-Destructed 49 | . . . . . . . 10 39 . . Prevented 14 | . . . . . . . 6 8 . . Kills | -11 -10 -10 -10 -9 -8 -7 -7 -7 -7 -7 ------- Run | Scr Mat Min Exi Min Mat Fac Low Low Zio Dee Combat Hostiles Destroyed 117 | . 8 6 . 3 41 17 7 19 . 16 Guns 43 | . 5 1 . . 4 5 6 12 . 10 Cannons 71 | . 3 4 . 3 37 12 . 6 . 6 AOE 3 | . . 1 . . . . 1 1 . . Classes Destroyed 14 | . 5 1 . . 4 1 . . . 3 Worker 1 | . 1 . . . . . . . . . Hauler 4 | . 2 . . . 2 . . . . . Operator 3 | . . . . . 2 1 . . . . Watcher 9 | . 3 . . . 4 2 . . . . Swarmer 28 | . 3 2 . 3 5 3 6 6 . . Grunt 44 | . 5 2 . . 23 7 . 7 . . Brawler 3 | . . . . . 1 . . 2 . . Duelist 2 | . . . . . 1 . . 1 . . Sentry 13 | . . 1 . . 10 1 . 1 . . Hunter 4 | . . . . . 1 2 1 . . . Programmer 6 | . . . . . . 4 . 2 . . Z-Light 10 | . . . . . . . . . . 10 Assembled 4 | . . . . . . . . . . 4 Golem 1 | . . . . . . . . . . 1 Best Kill Streak 13 | . 5 2 . 3 13 4 3 10 . 6 Combat Bots Only 11 | . 3 2 . 3 11 4 3 10 . 6 Max Kills in Single Turn 2 | . 1 1 . 1 2 1 1 2 . 1 Gunslinging . | . . . . . . . . . . . Exploded 1 | . . 1 . . . . 1 1 . . Melee . | . . . . . . . . . . . Uniques/NPCs Destroyed 2 | . . 1 . . . . . . . 1 YI-UF0 (-10/Mines) Z-Imprinter (-7/Deep Caves) Combat | -11 -10 -10 -10 -9 -8 -7 -7 -7 -7 -7 -------- Run | Scr Mat Min Exi Min Mat Fac Low Low Zio Dee Damage Taken 4079 | . 322 333 . 44 449 278 196 507 . 1950 Core 2833 | . 260 274 . 36 333 193 117 331 . 1289 Absorbed by Shields . | . . . . . . . . . . . Redirected to Core 2475 | . 183 180 . 23 306 144 107 310 . 1222 Core Remaining (%) 91 | 100 . . . 94 80 . . . . . Volleys Fired 217 | . 39 14 . 4 49 27 15 29 . 40 Largest 4 | . 2 2 . 2 1 4 4 4 . 4 Hottest 241 | . 55 98 . 98 68 156 156 156 . 241 Shots Fired 656 | . 78 28 . 8 148 86 60 116 . 132 Gun 353 | . 39 10 . . 33 47 45 87 . 92 Cannon 303 | . 39 18 . 8 115 39 15 29 . 40 Launcher . | . . . . . . . . . . . Special . | . . . . . . . . . . . Kinetic 513 | . 78 24 . 4 124 76 45 87 . 75 Thermal 60 | . . . . . 24 . . . . 36 Explosive . | . . . . . . . . . . . Electromagnetic 72 | . . 4 . 4 . 10 15 29 . 10 Phasic 11 | . . . . . . . . . . 11 Robot Hit Streak 36 | . 9 9 . 3 30 36 12 29 . 28 Robot Miss Streak 3 | . 3 1 . 1 2 2 1 1 . 2 Penetration Max 1 | . . . . . . . 1 1 . 1 Secondary Targets . | . . . . . . . . . . . Autonomous 129 | . . . . . 99 30 . . . . Shots Hit Robots 488 | . 51 20 . 4 126 62 38 83 . 104 Core Hits 202 | . 20 9 . 3 54 24 13 36 . 43 Critical Hits 18 | . 1 . . . 5 2 . 6 . 4 Critical Kills 8 | . 1 . . . 3 . . 3 . 1 Critical Parts Destroyed 8 | . . . . . 1 2 . 3 . 2 Melee Attacks . | . . . . . . . . . . . Impact . | . . . . . . . . . . . Slashing . | . . . . . . . . . . . Piercing . | . . . . . . . . . . . Sneak Attacks . | . . . . . . . . . . . Combat Hostiles . | . . . . . . . . . . . Follow-up Attacks . | . . . . . . . . . . . Damage Inflicted 17097 | . 746 359 . 146 8035 2818 664 1762 . 2567 Guns 5285 | . 396 79 . . 522 531 578 1284 . 1895 Cannons 11561 | . 350 202 . 88 7513 2287 28 421 . 672 Explosions 251 | . . 78 . 58 . . 58 57 . . Melee . | . . . . . . . . . . . Ramming . | . . . . . . . . . . . Kinetic 14142 | . 746 183 . . 7659 2656 368 1261 . 1269 Thermal 1471 | . . 78 . 58 376 . 58 57 . 844 Explosive . | . . . . . . . . . . . Electromagnetic 1187 | . . 98 . 88 . 162 238 444 . 157 Impact . | . . . . . . . . . . . Slashing . | . . . . . . . . . . . Piercing . | . . . . . . . . . . . Phasic 297 | . . . . . . . . . . 297 Highest Corruption 1 | . . . . . . . . 1 1 . Average Corruption 1 | . . . . . . . . 1 1 . Corruption Purged . | . . . . . . . . . . . Effects 2 | . . . . . . . . 1 1 . Message Errors 2 | . . . . . . . . 1 1 . Overload Shots . | . . . . . . . . . . . Overflow Damage 1580 | . . 10 . . 1024 505 23 3 . 15 Projectiles 1580 | . . 10 . . 1024 505 23 3 . 15 Explosions . | . . . . . . . . . . . Melee . | . . . . . . . . . . . Knockbacks 49 | . 4 1 . . 29 7 2 3 . 3 Impact . | . . . . . . . . . . . Kinetic 44 | . 4 1 . . 27 6 1 2 . 3 Secondary 5 | . . . . . 2 1 1 1 . . Self-Inflicted Damage . | . . . . . . . . . . . Shots . | . . . . . . . . . . . Rammed . | . . . . . . . . . . . Targets Rammed . | . . . . . . . . . . . Kicked . | . . . . . . . . . . . Crushed . | . . . . . . . . . . . Highest Temperature 430 | . 72 120 . 430 . . . . . 426 Average Temperature 95 | . 25 48 . 130 . . . . . 130 Received Heat Transfer 1017 | . 129 45 . . 207 27 . 153 . 456 Effects 3 | . . . . 1 . . . . . 2 Shutdowns 1 | . . . . 1 . . . . . . Energy Bleed 1 | . . . . . . . . . . 1 Damage (minor) 1 | . . . . . . . . . . 1 Siege Activations . | . . . . . . . . . . . Robots Corrupted . | . . . . . . . . . . . Combat Hostiles . | . . . . . . . . . . . Parts Fried 3 | . . . . . . 1 . 1 . 1 Impact Corruptions 2 | . . . . . 1 1 . . . . Robots Melted . | . . . . . . . . . . . Combat Hostiles . | . . . . . . . . . . . Parts Melted 3 | . . . . . 2 . . . . 1 Heat Transferred 2113 | . . 100 . 100 740 . 50 50 . 1073 Parts Sabotaged . | . . . . . . . . . . . Parts Stolen . | . . . . . . . . . . . Parts Stripped . | . . . . . . . . . . . Power Chain Reactions 4 | . . 1 . 1 . . 1 1 . . Missiles Intercepted . | . . . . . . . . . . . Alert | -11 -10 -10 -10 -9 -8 -7 -7 -7 -7 -7 ------- Run | Scr Mat Min Exi Min Mat Fac Low Low Zio Dee Peak Influence 622 | . 138 95 . 79 622 278 . . . . Average Influence 107 | . 39 37 . 48 248 92 . . . . Maximum Alert Level 2 | . . . . . 2 1 . . . . Low Security (%) 80 | 100 100 100 . 100 44 80 . . . . Level 1 15 | . . . . . 37 19 . . . . Level 2 4 | . . . . . 17 . . . . . Level 3 . | . . . . . . . . . . . Level 4 . | . . . . . . . . . . . Level 5 . | . . . . . . . . . . . High Security . | . . . . . . . . . . . Max Security . | . . . . . . . . . . . Squads Dispatched 13 | . . 1 . . 7 5 . . . . Investigation 3 | . . 1 . . 2 . . . . . Extermination 3 | . . . . . . 3 . . . . Reinforcement 4 | . . . . . 2 2 . . . . Assault . | . . . . . . . . . . . Garrison 3 | . . . . . 3 . . . . . Intercept . | . . . . . . . . . . . Construction Impeded . | . . . . . . . . . . . Haulers Reinforced 1 | . . . . . . 1 . . . . Stealth | -11 -10 -10 -10 -9 -8 -7 -7 -7 -7 -7 --------- Run | Scr Mat Min Exi Min Mat Fac Low Low Zio Dee Distress Signals 6 | . 1 1 . . 4 . . . . . Communications Jammed . | . . . . . . . . . . . Distress Signals . | . . . . . . . . . . . Times Spotted 145 | . 14 9 . 3 51 23 8 20 . 17 Peak Tracking Total 10 | . 5 2 . 3 10 5 4 8 . 4 Tactical Retreats 16 | . . 2 . . 7 4 2 1 . . Traps | -11 -10 -10 -10 -9 -8 -7 -7 -7 -7 -7 ------- Run | Scr Mat Min Exi Min Mat Fac Low Low Zio Dee Traps Triggered 6 | . 3 . . . 2 1 . . . . Indirectly . | . . . . . . . . . . . Trap Hack Attempts . | . . . . . . . . . . . Triggered . | . . . . . . . . . . . Disarmed . | . . . . . . . . . . . Reprogrammed . | . . . . . . . . . . . Reused . | . . . . . . . . . . . Traps Extracted . | . . . . . . . . . . . Installed . | . . . . . . . . . . . Triggered . | . . . . . . . . . . . Machines | -11 -10 -10 -10 -9 -8 -7 -7 -7 -7 -7 ---------- Run | Scr Mat Min Exi Min Mat Fac Low Low Zio Dee Machines Disabled 7 | . . 2 . 1 2 . . . . 2 Max in Single Turn 2 | . . 2 . 1 1 . . . . 1 Garrison Access 1 | . . . . . . 1 . . . . Machines Sabotaged . | . . . . . . . . . . . Garrisons Compromised . | . . . . . . . . . . . Overloaded Fab Kills . | . . . . . . . . . . . Fab Network Shutdowns . | . . . . . . . . . . . Hacking | -11 -10 -10 -10 -9 -8 -7 -7 -7 -7 -7 --------- Run | Scr Mat Min Exi Min Mat Fac Low Low Zio Dee Machines Accessed 19 | . 6 1 4 . 5 2 . . 1 . Terminals 11 | . 6 . . . 4 1 . . . . Fabricators . | . . . . . . . . . . . Repair Stations 1 | . . . . . 1 . . . . . Recycling Units . | . . . . . . . . . . . Scanalyzers . | . . . . . . . . . . . Garrison Access 1 | . . . . . . 1 . . . . Total Hacks 76 | . 9 1 48 . 9 2 . . 7 . Successful 71 | . 6 1 48 . 8 1 . . 7 . Failed 5 | . 3 . . . 1 1 . . . . Catastrophic . | . . . . . . . . . . . Database Lockouts . | . . . . . . . . . . . Manual 6 | . . . 1 . . . . . 5 . Terminals 17 | . 9 . . . 7 1 . . . . Fabricators . | . . . . . . . . . . . Repair Stations 2 | . . . . . 2 . . . . . Recycling Units . | . . . . . . . . . . . Scanalyzers . | . . . . . . . . . . . Garrison Access 1 | . . . . . . 1 . . . . Terminal Hacks 68 | . 6 1 48 . 6 . . . 7 . Record 49 | . . . 48 . 1 . . . . . Part Schematic 7 | . . . . . . . . . 7 . Open Door 1 | . . 1 . . . . . . . . Emergency Access Points 1 | . . . . . 1 . . . . . Alert Level 1 | . . . . . 1 . . . . . Locate Traps 1 | . 1 . . . . . . . . . Dispatch Records 2 | . 1 . . . 1 . . . . . Reinforcement Status 1 | . 1 . . . . . . . . . Hauler Manifests 1 | . . . . . 1 . . . . . Zone Layout 4 | . 3 . . . 1 . . . . . Fabricator Hacks . | . . . . . . . . . . . Repair Station Hacks 2 | . . . . . 2 . . . . . Scan Component 1 | . . . . . 1 . . . . . Repair 1 | . . . . . 1 . . . . . Recycling Unit Hacks . | . . . . . . . . . . . Scanalyzer . | . . . . . . . . . . . Garrison Access Hacks 1 | . . . . . . 1 . . . . Seal Access 1 | . . . . . . 1 . . . . Unauthorized Hacks . | . . . . . . . . . . . Terminals . | . . . . . . . . . . . Fabricators . | . . . . . . . . . . . Repair Stations . | . . . . . . . . . . . Recycling Units . | . . . . . . . . . . . Scanalyzers . | . . . . . . . . . . . Garrison Access . | . . . . . . . . . . . Data Cores Recovered 1 | . . . . . 1 . . . . . Used 1 | . . . . . 1 . . . . . Hacking Detections 7 | . 2 . . . 4 1 . . . . Full Trace Events . | . . . . . . . . . . . Feedback Events . | . . . . . . . . . . . Feedback Blocked . | . . . . . . . . . . . Robot Schematics Acquired . | . . . . . . . . . . . Robots Built . | . . . . . . . . . . . Matter . | . . . . . . . . . . . Time . | . . . . . . . . . . . Total Robot Build Rating . | . . . . . . . . . . . Part Schematics Acquired 7 | . . . . . . . . . 7 . Parts Built . | . . . . . . . . . . . Matter . | . . . . . . . . . . . Time . | . . . . . . . . . . . Total Part Build Rating . | . . . . . . . . . . . Parts Repaired 1 | . . . . . 1 . . . . . Time 80 | . . . . . 80 . . . . . Parts Recycled . | . . . . . . . . . . . Recycled Matter . | . . . . . . . . . . . Retrieved Matter . | . . . . . . . . . . . Retrieved Components . | . . . . . . . . . . . Parts Scanalyzed . | . . . . . . . . . . . Part Schematics Acquired . | . . . . . . . . . . . Parts Damaged . | . . . . . . . . . . . Bothacking | -11 -10 -10 -10 -9 -8 -7 -7 -7 -7 -7 ------------ Run | Scr Mat Min Exi Min Mat Fac Low Low Zio Dee Used RIF Installer . | . . . . . . . . . . . Robots Hacked . | . . . . . . . . . . . Non-combat . | . . . . . . . . . . . Combat . | . . . . . . . . . . . Robot Hacks Applied . | . . . . . . . . . . . Relay Couplers Released . | . . . . . . . . . . . Robots Rewired . | . . . . . . . . . . . Allies Hacked . | . . . . . . . . . . . Hacks Repelled . | . . . . . . . . . . . Allies | -11 -10 -10 -10 -9 -8 -7 -7 -7 -7 -7 -------- Run | Scr Mat Min Exi Min Mat Fac Low Low Zio Dee Total Allies 5 | . . . . . . . . . 5 . Largest Group 5 | . . . . . . . . . 5 3 Highest-Rated Group 149 | . . . . . . . . . 149 87 Highest-Rated Ally 31 | . . . . . . . . . 31 31 Total Orders . | . . . . . . . . . . . Ally Attacks 42 | . . . . . . . . . . 42 Total Damage 925 | . . . . . . . . . . 925 Kills 7 | . . . . . . . . . . 7 Allies Corrupted . | . . . . . . . . . . . Allies Melted . | . . . . . . . . . . . Intel | -11 -10 -10 -10 -9 -8 -7 -7 -7 -7 -7 ------- Run | Scr Mat Min Exi Min Mat Fac Low Low Zio Dee Robot Analysis Total . | . . . . . . . . . . . Derelict Logs Recovered 8 | . . 2 . 2 . . . 3 1 . Drone Launches . | . . . . . . . . . . . Drone Recoveries . | . . . . . . . . . . . Exploration | -11 -10 -10 -10 -9 -8 -7 -7 -7 -7 -7 ------------- Run | Scr Mat Min Exi Min Mat Fac Low Low Zio Dee Turns Passed 12338 | 36 936 909 764 639 1459 2548 927 1193 1171 1756 Spaces Moved 7428 | 34 745 691 756 483 822 1166 520 575 706 930 Core 12 | 12 . . . . . . . . . . Treads 4146 | . . . . . 249 1166 520 575 706 930 Legs . | . . . . . . . . . . . Wheels 3270 | 22 745 691 756 483 573 . . . . . Hover . | . . . . . . . . . . . Flight . | . . . . . . . . . . . Fastest Speed 50 | 50 100 100 100 100 120 170 163 163 163 163 Average Speed 142 | 82 100 100 100 119 143 186 165 163 163 163 Slowest Speed 230 | 100 100 100 100 120 230 190 190 163 163 163 Overloaded Moves . | . . . . . . . . . . . Propulsion Burnouts . | . . . . . . . . . . . Robots Hopped . | . . . . . . . . . . . Cave-ins Triggered . | . . . . . . . . . . . Exploration Rate (%) 73 | 3 99 99 94 97 70 24 68 74 85 90 Regions Visited 10 Branch Regions 7 Pre-discovered Areas 4 | . . 2 1 . . . . 1 . . Known Exits Taken 9 | . 1 1 1 1 1 1 1 1 1 . Unknown Exits Taken 1 | 1 . . . . . . . . . . Scrap Searched 12 | . . . . 1 . . 7 2 2 . Spaces Dug 4 | . . . . . 4 . . . . . Terrain Destroyed 82 | . . 4 . 3 15 10 19 18 . 13 Melee . | . . . . . . . . . . . Projectile 58 | . . . . . 15 10 12 8 . 13 AOE 24 | . . 4 . 3 . . 7 10 . . Actions | -11 -10 -10 -10 -9 -8 -7 -7 -7 -7 -7 --------- Run | Scr Mat Min Exi Min Mat Fac Low Low Zio Dee Total 8776 | 39 855 881 765 538 1055 1507 555 770 725 1086 Wait 831 | . 40 155 . 40 139 263 3 127 17 47 Move 7418 | 33 744 690 755 482 821 1165 519 574 705 930 Hop . | . . . . . . . . . . . Pick Up 29 | 1 4 2 3 5 4 4 2 . 1 3 Fast Attach 46 | 5 5 . . . 11 7 3 . . 15 Attach 7 | . . 1 . 2 1 2 . 1 . . Detach 1 | . . . . . . 1 . . . . Swap 19 | . 3 1 2 1 2 6 . . 2 2 Drop 54 | . 3 1 5 4 9 10 4 . . 18 Fire 217 | . 39 14 . 4 49 27 15 29 . 40 Melee . | . . . . . . . . . . . Ram . | . . . . . . . . . . . Kick . | . . . . . . . . . . . Crush . | . . . . . . . . . . . Escape Stasis 2 | . . . . . . 2 . . . . Rewire . | . . . . . . . . . . . Trap . | . . . . . . . . . . . Miscellaneous 152 | . 17 17 . . 19 20 9 39 . 31 Route ------- -11/Scrapyard -10/Materials (discovered 5 exits: *Mat x3 / *Min x2) -10/Mines (discovered 3 exits: *Mat x2 / *Exi) -10/Exiles (discovered 2 exits: *Min x2) -9/Mines (discovered 2 exits: *Mat x2) -8/Materials (discovered 2 exits: *Fac x2) -7/Factory (discovered 2 exits: *Fac / *Low) -7/Lower Caves -7/Lower Caves (discovered 2 exits: *Fac / *Zio) -7/Zion (discovered 2 exits: *Dee / [Pro]) -7/Deep Caves (discovered 1 exit: *Pro) History --------- Turn | Location | Event 1 | -11/Scrapyard | Upgraded with Propulsion slot (x1) 1 | -11/Scrapyard | Upgraded with Utility slot (x1) 1 | -11/Scrapyard | Upgraded with Weapon slot (x1) 24 | -11/Scrapyard | Discovered new exit (range 12) 37 | -11/Scrapyard | Entered Materials 43 | -10/Materials | Discovered new exit (range 10) 244 | -10/Materials | Discovered new exit (range 10) 309 | -10/Materials | Build established: Mutant 534 | -10/Materials | Discovered new exit (range 15) 662 | -10/Materials | Identified exit to Materials 690 | -10/Materials | Discovered new exit (range 14) 708 | -10/Materials | Identified exit to Mines 860 | -10/Materials | Discovered exit to Materials (range 11) 973 | -10/Materials | Entered Mines 975 | -10/Mines | Reached level 2 1000 | -10/Mines | Upgraded with Utility slot (x1) 1011 | -10/Mines | Assembled infested the area 1016 | -10/Mines | Assisted by a Guerilla fighting off Assembled 1051 | -10/Mines | Discovered new exit (range 14) 1061 | -10/Mines | Deemed a non-threat by the Exiles lab entrance 1065 | -10/Mines | Identified exit to Exiles 1117 | -10/Mines | Destroyed YI-UF0 1306 | -10/Mines | Build established: Skirmisher 1430 | -10/Mines | Learned location of 1 exit from Materials 1460 | -10/Mines | Learned location of Zion (-7) 1485 | -10/Mines | Met a Derelict shopkeep closing up shop 1563 | -10/Mines | Discovered exit to Materials (range 14) 1606 | -10/Mines | Learned location of Storage (-9) 1611 | -10/Mines | Discovered exit to Materials (range 14) 1737 | -10/Mines | Joined a pair of Derelicts in attacking an 0b10 outpost 1882 | -10/Mines | Entered Exiles 1908 | -10/Exiles | Met 8R-AWN 1926 | -10/Exiles | Met EX-HEX 1955 | -10/Exiles | Met EX-BIN 1971 | -10/Exiles | Aligned with FarCom system 1972 | -10/Exiles | Given EX-Vault access code 2014 | -10/Exiles | Opened EX-Vault 2019 | -10/Exiles | Found Prototype Device 2020 | -10/Exiles | Identified Trap Reconfigurator 2027 | -10/Exiles | Found Prototype Ballistic Cannon 2051 | -10/Exiles | Warned to stay clear of 0b10 Research branches 2117 | -10/Exiles | Discovered new exit (range 15) 2131 | -10/Exiles | Identified exit to Mines 2219 | -10/Exiles | Met EX-DEC 2259 | -10/Exiles | Visited The Gauntlet 2444 | -10/Exiles | Discovered exit to Mines (range 14) 2646 | -10/Exiles | Left Exiles lab with AWS/Autocannon 2646 | -10/Exiles | Entered Mines 2648 | -9/Mines | Reached level 3 2671 | -9/Mines | Upgraded with Weapon slot (x1) 2673 | -9/Mines | Identified AWS/Autocannon 2727 | -9/Mines | Discovered new exit (range 10) 2738 | -9/Mines | Identified exit to Materials 2747 | -9/Mines | Found a damaged Exp. Sensor Array with a note attached 2750 | -9/Mines | Found Prototype Device 2751 | -9/Mines | Identified Exp. Sensor Array 2863 | -9/Mines | Learned Materials interactive machine intel 3085 | -9/Mines | A weapon hastily lodged in a ceiling crevice suddenly fell to the ground 3102 | -9/Mines | Learned 2 Materials zone layouts 3244 | -9/Mines | Discovered exit to Materials (range 6) 3285 | -9/Mines | Entered Materials 3286 | -8/Materials | Identified exit to Factory 3287 | -8/Materials | Reached level 4 3287 | -8/Materials | Reached level 5 3287 | -8/Materials | Reached level 6 3288 | -8/Materials | Loaded intel: 19 interactive machine locations 3431 | -8/Materials | Upgraded with Utility slot (x2) 3431 | -8/Materials | Upgraded with Weapon slot (x1) 3587 | -8/Materials | Reached level 7 3655 | -8/Materials | Discovered exit to Factory (range 20) 3665 | -8/Materials | Destroyed 7 combat bots 4058 | -8/Materials | Repaired Faulty Exp. Sensor Array 4079 | -8/Materials | Reached level 8 4350 | -8/Materials | Garrison activated, responded to threat 4405 | -8/Materials | Reached level 9 4411 | -8/Materials | Upgraded with Power slot (x1) 4595 | -8/Materials | Reached level 10 4605 | -8/Materials | Upgraded with Propulsion slot (x1) 4647 | -8/Materials | Destroyed 11 combat bots 4744 | -8/Materials | Entered Factory 4746 | -7/Factory | Reached level 11 5855 | -7/Factory | Reached level 12 6087 | -7/Factory | Discovered new exit (range 12) 6127 | -7/Factory | Identified exit to Factory 7247 | -7/Factory | Discovered new exit (range 20) 7290 | -7/Factory | Identified exit to Lower Caves 7292 | -7/Factory | Entered Lower Caves 7294 | -7/Lower Caves | Reached level 13 8161 | -7/Lower Caves | Discovered new exit (range 7) 8181 | -7/Lower Caves | Identified exit to Lower Caves 8219 | -7/Lower Caves | Entered another Lower Caves area 8221 | -7/Lower Caves | Reached level 14 8236 | -7/Lower Caves | Upgraded with Utility slot (x1) 8283 | -7/Lower Caves | Encountered a Warlord checkpoint 9048 | -7/Lower Caves | Attracted the attention of an 0b10 outpost 9113 | -7/Lower Caves | Destroyed 10 combat bots 9130 | -7/Lower Caves | Identified exit to Zion 9314 | -7/Lower Caves | Reached level 15 9388 | -7/Lower Caves | Learned location of Extension (-5) 9412 | -7/Lower Caves | Entered Zion 9494 | -7/Zion | Discovered new exit (range 20) 9509 | -7/Zion | Gained Derelict followers 9588 | -7/Zion | System corruption cleaned by Quarantine Array 9702 | -7/Zion | Visited the Megawrench Repair Shop 9702 | -7/Zion | Megawrench repaired 2 parts 9741 | -7/Zion | Found Prototype Device 9742 | -7/Zion | Identified Mobile Refinery Mk. CCLXVII 10061 | -7/Zion | Received a visual enhancement algorithm 10201 | -7/Zion | Learned Factory emergency access door positions 10328 | -7/Zion | Acquired unknown access codes intercepted by a Zionite 10405 | -7/Zion | Rebuked by Imprinter 10491 | -7/Zion | Given A8's code to call for help 10525 | -7/Zion | Discovered new exit (range 19) 10553 | -7/Zion | Opened final containment barrier to the Deep Caves 10578 | -7/Zion | Saw the warning signs outside the Deep Caves entrance 10581 | -7/Zion | Identified exit to Deep Caves 10583 | -7/Zion | Entered Deep Caves 10583 | -7/Deep Caves | Accompanied by 3 allies 10859 | -7/Deep Caves | Z-Facility disabled 10885 | -7/Deep Caves | Attacked by Z-Imprinter 10899 | -7/Deep Caves | Destroyed Z-Imprinter 10958 | -7/Deep Caves | Found Prototype Device 10958 | -7/Deep Caves | Identified Zio. Metafield Generator 11146 | -7/Deep Caves | Found Prototype Protection 11146 | -7/Deep Caves | Identified Zio. Weapon Casing 11236 | -7/Deep Caves | Build established: Scavenger-Skirmisher 11433 | -7/Deep Caves | Found Prototype Protection 11433 | -7/Deep Caves | Identified Zio. Heavy Carapace 11555 | -7/Deep Caves | Discovered new exit (range 6) 11562 | -7/Deep Caves | Identified exit to Proximity Caves 11888 | -7/Deep Caves | Spotted as-93958 11956 | -7/Deep Caves | Core integrity fell below 50% 11962 | -7/Deep Caves | Destroyed as-93958 12327 | -7/Deep Caves | Spotted as-37854 12333 | -7/Deep Caves | Core integrity fell below 20% 12339 | -7/Deep Caves | Destroyed by as-37854 with Assembled Focal Cannon Last Messages --------------- as-15475 destroyed. 8D-SD9(b) destroyed. as-93958: "DSI9AT1D G8OHIBQ29FWG 26R186 QD12WHW8W33 TDK1 81FTS" Destroyed Prototype Device. as-93958 GOLEM Unit beginning Prototype Device integration. as-93958 Prototype Device integration complete. Slug penetrates as-93958. as-93958 knocked back. Slug penetrates as-93958. Zio. Heavy Carapace destroyed. Overheating: Zio. Phaser-S damaged (-5). as-93958 destroyed. Overheating: Energy bleed (-275). Acquired 106 matter. Acquired 16 matter. Acquired Hrd. Heavy Armor Plating. Dropped Zio. Laser-S. Dropped Zio. Laser-M. Acquired Zio. Laser-S. as-37854: "DSI9AT1D G8OHIBQ29FWG 26R186 QD12WHW8W33 TDK1 81FTS" Map ----- +----------------------------------------------------+ | ???????????????????????????????????## ##?????? | | ??????????????????????????????????## #?????? | | ??????????????????????????????????# #####?? | | ??????????????????????????????????# ## ##? | | ???????????????? ???????????????# #? | | ?????????????? ???????????????# #? | | ??????????? ???????????????## #? | | ?????????"" ????????????????## ## | | ????????"G ????????????????## # | | ????????" ?????????????????## | | ????????" ??????????????????# | | ????????# ?????????????????# ## | | ?????????" ?????????????????## #### | | ?????????" ?????????????????## ##?# | | ?????????" ?????????????????## ## | | ?????????" ??###???????????## | | ????????"" [ / ??# #???????????# ## | | ????????# / ### ##?????????## ##? | | ???????a# b # ?????????## #?? | | ???Aaaaa# / ##???????## #?? | | ???aaaaa# l ###????## ##?? | | ???aaaaa# /M! #????# #??? | | ???aaaaa# ! l #??????# #### | | ???aaaaa# ##?????# | | ???aaaaa# g #?????# #### | | ???Aaaaa# ! !! @ #?????## #???## ## # | | ???????a# !! #??????######## ## ## | | ????????# l! ! #????????# ## ## | | ????????"" ! #????????# ## #? | | ?????????" * ! #????????# ####### #? | | ?????????" * * ! #????????# #?????# #? | | ?????????" * ##???????# #?????# #? | | ?????????" ! * #??????## ##????# #? | | ????????# #??????# "####?# ## | | ????????" h M #?????## #?# | | ????????" #######" ###### | | ????????" ! % * "" ""### | | ????????""" ! * * "" | | ????????" | | ????????"" ##### ###"# | | ????????" #??# #?### | | ????????"" ##??# | | ????????" # # #???## ## | | ????????" #### ## #; ##????# ############ | | ?????????"" ##???# ?# ?###?????#"##"#??????????? | | ?????????? ??????#??# ?????????# ?? #??????????? | | ??????????##???????????#?????????##?? #??????????? | | | | | | | +----------------------------------------------------+ Best States ------------- Heat Dissipation 123 Energy Generation 49 Energy Capacity 1315 Matter Stores 350 Matter Capacity 350 Sight Range 21 Robot Scan Range 34 Terrain Scan Range 20 Terrain Scan Density 710 Armor Coverage 1200 Resistance: KI 25 Resistance: TH 30 Resistance: EX 20 Resistance: EM 20 Resistance: I 20 Resistance: S 20 Resistance: P 20 Evasion (%) 50 Armor Integrity Analysis 33 Recoil Reduction 3 Offensive Hacking 10 Item Schematics ----------------- Hvy. Beamcaster | -7/Zion | Free Hvy. Riot Gun | -7/Zion | Free Battle Rifle | -7/Zion | Free Barrage Gun | -7/Zion | Free Battle Cannon | -7/Zion | Free Flamer | -7/Zion | Free Enh. Flamer | -7/Zion | Free Robot Schematics ------------------ None Fabricated ------------ Nothing Alien Tech Used ----------------- None Achievements -------------- None Challenges ------------ None RPGLIKE | -11 -10 -10 -10 -9 -8 -7 -7 -7 -7 -7 --------- Run | Scr Mat Min Exi Min Mat Fac Low Low Zio Dee Levels Raised 14 | . . 1 . 1 7 2 1 2 . . XP Earned 26119 | 4000 1125 1150 350 1370 10019 3720 1350 1986 316 733 XP Spent 23385 | 4000 . 1500 . 1485 10500 2950 . 2950 . . Upgrades 58 | 7 . 7 . 6 28 6 . 4 . . Power Slot 1 | . . . . . 1 . . . . . Propulsion Slot 2 | 1 . . . . 1 . . . . . Utility Slot 5 | 1 . 1 . . 2 . . 1 . . Weapon Slot 3 | 1 . . . 1 1 . . . . . Core Integrity 6 | . . . . . 6 . . . . . Heat Dissipation 12 | . . . . 3 9 . . . . . Matter Storage 1 | . . . . . 1 . . . . . Inventory Capacity 6 | 4 . . . . 1 1 . . . . Sight Range 5 | . . . . . 4 1 . . . . Sensor Range 6 | . . 1 . 1 . 4 . . . . Terrain Scan Density 7 | . . 5 . . 2 . . . . . Ranged Accuracy 3 | . . . . 1 . . . 2 . . KI Resistance % 1 | . . . . . . . . 1 . . Protomatter Created 1480 | . 173 134 . . 320 153 61 297 . 342 Integrity Restored 2785 | . 280 363 . . 267 362 176 777 . 560 Core 1916 | . 239 295 . . 196 302 115 397 . 372 Parts 869 | . 41 68 . . 71 60 61 380 . 188 Protomatter Decayed 656 | . 76 7 . . 228 29 . 57 . 259 Game ------ Seed BombAlphaScythe Manual? 0 Play Time 01:33:32 Cumulative 75.6 hours Start 2020.01.11 @ 20:56:39 End 2020.01.11 @ 22:36:27 Sessions 1 Manual Loads 0 Difficulty Adventurer Special Mode Winter2019/RPGLIKE Game No. 31 Rogue 12 Adventurer 19 Explorer 0 Win Type - Total 1 Types 1/0/0/0/0/0/0 Lore% 44 Gallery% 42 Achievement% 44 Wizard Run 0 Options --------- ASCII 0 Keyboard 0 Movement Mouse Keybinds 0 Fullscreen 1 Font 18/SmallcapsGlow Map View 76x50 Tactical HUD 0 Map Filters NONE Filters NONE Steam 1 RUN: 784db9c5-af0d-4cc6-96cf-25cae2b38055